[Event "Early-Titled-Tuesday-Blitz-September-12-2023"]
[Site "Chess.com"]
[Date "2023.09.12"]
[Round "4"]
[White "CraiggoryC"]
[Black "Ruchess27"]
[Result "0-1"]
[WhiteElo "2237"]
[BlackElo "2474"]
[TimeControl "180+1"]
[EndTime "8:37:46 PDT"]
[Termination "Ruchess27 won on time"]

1. e4 {[%clk 0:02:53.6]} 1... e5 {[%clk 0:02:59.7]} 2. Nc3 {[%clk 0:02:53.1]}
2... Nc6 {[%clk 0:02:58.7]} 3. f4 {[%clk 0:02:51.1]} 3... exf4 {[%clk
0:02:48.9]} 4. Nf3 {[%clk 0:02:51.3]} 4... Bb4 {[%clk 0:02:44.4]} 5. Nd5 {[%clk
0:02:49.7]} 5... Nge7 {[%clk 0:02:27.8]} 6. Nxb4 {[%clk 0:02:45]} 6... Nxb4
{[%clk 0:02:28.7]} 7. c3 {[%clk 0:02:39.5]} 7... Nbc6 {[%clk 0:02:26.9]} 8. d4
{[%clk 0:02:39.4]} 8... d5 {[%clk 0:02:27.2]} 9. e5 {[%clk 0:02:33.7]} 9... Bg4
{[%clk 0:02:22]} 10. Bxf4 {[%clk 0:02:30.6]} 10... O-O {[%clk 0:02:21.3]} 11.
Bd3 {[%clk 0:02:28.9]} 11... Ng6 {[%clk 0:02:06.5]} 12. Bg3 {[%clk 0:02:13]}
12... f6 {[%clk 0:01:58.5]} 13. exf6 {[%clk 0:01:34.2]} 13... Re8+ {[%clk
0:01:58.2]} 14. Kf2 {[%clk 0:01:08.9]} 14... Qxf6 {[%clk 0:01:57.4]} 15. Rf1
{[%clk 0:00:58.6]} 15... Nf4 {[%clk 0:00:57.9]} 16. Kg1 {[%clk 0:00:34.9]} 16...
Re3 {[%clk 0:00:54.3]} 17. Bxf4 {[%clk 0:00:20.3]} 17... Qxf4 {[%clk 0:00:55.2]}
18. Qc2 {[%clk 0:00:01.7]} 18... Bxf3 {[%clk 0:00:51.3]} 19. Bxh7+ {[%clk
0:00:01.7]} 19... Kh8 {[%clk 0:00:51.8]} 20. Rxf3 {[%clk 0:00:02]} 20... Rxf3
{[%clk 0:00:52.3]} 21. gxf3 {[%clk 0:00:02.5]} 21... Qxf3 {[%clk 0:00:38.3]} 22.
Rf1 {[%clk 0:00:02.5]} 22... Qg4+ {[%clk 0:00:37.5]} 23. Kh1 {[%clk 0:00:02.6]}
23... Re8 {[%clk 0:00:38]} 24. Qg6 {[%clk 0:00:02]} 24... Qe2 {[%clk 0:00:18]}
0-1

[Event "Early-Titled-Tuesday-Blitz-September-12-2023"]
[Site "Chess.com"]
[Date "2023.09.12"]
[Round "4"]
[White "jraosam"]
[Black "Predator0608"]
[Result "0-1"]
[WhiteElo "1994"]
[BlackElo "2618"]
[TimeControl "180+1"]
[EndTime "8:37:47 PDT"]
[Termination "Predator0608 won on time"]

1. e4 {[%clk 0:01:34.3]} 1... c5 {[%clk 0:02:59]} 2. Nf3 {[%clk 0:01:33.6]} 2...
d6 {[%clk 0:02:58.7]} 3. d4 {[%clk 0:01:33.7]} 3... cxd4 {[%clk 0:02:59.6]} 4.
Nxd4 {[%clk 0:01:34.6]} 4... Nf6 {[%clk 0:03:00.3]} 5. Nc3 {[%clk 0:01:35.2]}
5... a6 {[%clk 0:03:00.2]} 6. Bg5 {[%clk 0:01:35.6]} 6... Qb6 {[%clk 0:02:52.8]}
7. Bxf6 {[%clk 0:01:27.4]} 7... gxf6 {[%clk 0:02:51.8]} 8. Nd5 {[%clk
0:01:03.5]} 8... Qd8 {[%clk 0:02:47.8]} 9. Be2 {[%clk 0:01:04]} 9... e6 {[%clk
0:02:44.9]} 10. Ne3 {[%clk 0:01:03.3]} 10... Nc6 {[%clk 0:02:43.9]} 11. O-O
{[%clk 0:00:58.9]} 11... Qb6 {[%clk 0:02:40.9]} 12. Nxc6 {[%clk 0:00:54.8]}
12... bxc6 {[%clk 0:02:38.1]} 13. c3 {[%clk 0:00:45.3]} 13... Rg8 {[%clk
0:02:32.1]} 14. Nc4 {[%clk 0:00:43.6]} 14... Qc7 {[%clk 0:02:30.8]} 15. g3
{[%clk 0:00:42.6]} 15... Be7 {[%clk 0:02:26.6]} 16. a4 {[%clk 0:00:41.1]} 16...
d5 {[%clk 0:02:25.7]} 17. exd5 {[%clk 0:00:34.6]} 17... cxd5 {[%clk 0:02:26.6]}
18. Nd2 {[%clk 0:00:28.8]} 18... Bc5 {[%clk 0:02:25.6]} 19. Nb3 {[%clk
0:00:28.4]} 19... Ba7 {[%clk 0:02:17.6]} 20. Kg2 {[%clk 0:00:20.6]} 20... Bb7
{[%clk 0:02:17.5]} 21. Bf3 {[%clk 0:00:19.8]} 21... f5 {[%clk 0:02:11.8]} 22.
Re1 {[%clk 0:00:19.6]} 22... Qb6 {[%clk 0:02:09.9]} 23. Re2 {[%clk 0:00:17.2]}
23... O-O-O {[%clk 0:01:59.3]} 24. a5 {[%clk 0:00:17.7]} 24... Qc7 {[%clk
0:01:58.1]} 25. Qd3 {[%clk 0:00:17.5]} 25... f4 {[%clk 0:01:53.9]} 26. Rae1
{[%clk 0:00:11.8]} 26... fxg3 {[%clk 0:01:53.6]} 27. hxg3 {[%clk 0:00:10.9]}
27... Kb8 {[%clk 0:01:46.8]} 28. Rh1 {[%clk 0:00:08.4]} 28... e5 {[%clk
0:01:11.3]} 29. Qf5 {[%clk 0:00:06.5]} 29... e4 {[%clk 0:01:10.5]} 30. Bh5
{[%clk 0:00:06.6]} 30... Rg7 {[%clk 0:01:07.1]} 31. Nd4 {[%clk 0:00:05.1]} 31...
Rdg8 {[%clk 0:01:07]} 32. Rh3 {[%clk 0:00:04.7]} 32... Bc8 {[%clk 0:01:06.4]}
33. Qf6 {[%clk 0:00:02.5]} 33... Bxh3+ {[%clk 0:01:04.6]} 34. Kxh3 {[%clk
0:00:03.4]} 34... Rxg3+ {[%clk 0:01:04.8]} 35. Kh4 {[%clk 0:00:03.3]} 35... R3g6
{[%clk 0:00:54.1]} 36. Bxg6 {[%clk 0:00:02.9]} 36... Qh2+ {[%clk 0:00:53.7]} 0-1

[Event "Early-Titled-Tuesday-Blitz-September-12-2023"]
[Site "Chess.com"]
[Date "2023.09.12"]
[Round "4"]
[White "DeArron_Fox"]
[Black "Willychess95"]
[Result "0-1"]
[WhiteElo "2501"]
[BlackElo "2704"]
[TimeControl "180+1"]
[EndTime "8:37:50 PDT"]
[Termination "Willychess95 won by checkmate"]

1. d4 {[%clk 0:03:00.9]} 1... Nf6 {[%clk 0:02:59]} 2. c4 {[%clk 0:03:01.4]} 2...
e6 {[%clk 0:02:59]} 3. Nf3 {[%clk 0:03:01.5]} 3... Bb4+ {[%clk 0:02:59.2]} 4.
Bd2 {[%clk 0:03:01.2]} 4... a5 {[%clk 0:02:59.5]} 5. g3 {[%clk 0:03:01.4]} 5...
O-O {[%clk 0:02:56.5]} 6. Bg2 {[%clk 0:03:01.5]} 6... d5 {[%clk 0:02:54.7]} 7.
Qc2 {[%clk 0:02:29.8]} 7... c5 {[%clk 0:02:52.8]} 8. O-O {[%clk 0:02:25.6]} 8...
Nc6 {[%clk 0:02:39.3]} 9. a3 {[%clk 0:01:47.1]} 9... Bxd2 {[%clk 0:02:38.1]} 10.
Qxd2 {[%clk 0:01:48]} 10... dxc4 {[%clk 0:02:28]} 11. dxc5 {[%clk 0:01:46]}
11... Qe7 {[%clk 0:02:26.1]} 12. Qd6 {[%clk 0:01:34.4]} 12... Qxd6 {[%clk
0:02:23.9]} 13. cxd6 {[%clk 0:01:35.3]} 13... Rd8 {[%clk 0:02:24.2]} 14. Nbd2
{[%clk 0:01:33.9]} 14... c3 {[%clk 0:02:03.4]} 15. bxc3 {[%clk 0:01:30.2]} 15...
Rxd6 {[%clk 0:02:03.4]} 16. Nc4 {[%clk 0:01:28.9]} 16... Rd8 {[%clk 0:02:04]}
17. Rfd1 {[%clk 0:01:24.9]} 17... Bd7 {[%clk 0:02:02.2]} 18. Nb6 {[%clk
0:01:20.2]} 18... Ra6 {[%clk 0:01:59]} 19. Rab1 {[%clk 0:00:44.2]} 19... Be8
{[%clk 0:01:51.2]} 20. Rxd8 {[%clk 0:00:42.3]} 20... Nxd8 {[%clk 0:01:51.3]} 21.
Ne5 {[%clk 0:00:42]} 21... Kf8 {[%clk 0:01:45.7]} 22. c4 {[%clk 0:00:33.7]}
22... Ke7 {[%clk 0:01:39.8]} 23. c5 {[%clk 0:00:27.4]} 23... a4 {[%clk
0:01:40.1]} 24. Nc8+ {[%clk 0:00:18.2]} 24... Kf8 {[%clk 0:01:40]} 25. Bxb7
{[%clk 0:00:09.6]} 25... Ra5 {[%clk 0:01:40.2]} 26. Nd3 {[%clk 0:00:06.4]} 26...
Bb5 {[%clk 0:01:33.2]} 27. Ne5 {[%clk 0:00:02.5]} 27... Nxb7 {[%clk 0:01:28.6]}
28. c6 {[%clk 0:00:01.7]} 28... Nc5 {[%clk 0:01:17.7]} 29. Nd6 {[%clk
0:00:01.9]} 29... Nb3 {[%clk 0:01:00.2]} 30. c7 {[%clk 0:00:01.7]} 30... Ba6
{[%clk 0:00:59.3]} 31. c8=Q+ {[%clk 0:00:01.8]} 31... Bxc8 {[%clk 0:00:59.1]}
32. Nxc8 {[%clk 0:00:02.7]} 32... Rxe5 {[%clk 0:00:59.3]} 33. Nb6 {[%clk
0:00:03.4]} 33... Rxe2 {[%clk 0:00:57.2]} 34. Nxa4 {[%clk 0:00:03.3]} 34... Nd2
{[%clk 0:00:57.3]} 35. Rb8+ {[%clk 0:00:02.3]} 35... Ke7 {[%clk 0:00:57.3]} 36.
Rb7+ {[%clk 0:00:03]} 36... Ke8 {[%clk 0:00:56.8]} 37. Nc5 {[%clk 0:00:02.7]}
37... Nde4 {[%clk 0:00:52.6]} 38. Na6 {[%clk 0:00:02.1]} 38... Rxf2 {[%clk
0:00:51.2]} 39. Nc7+ {[%clk 0:00:01.4]} 39... Kd8 {[%clk 0:00:51.6]} 40. Nb5
{[%clk 0:00:01.4]} 40... Ng4 {[%clk 0:00:47.7]} 41. a4 {[%clk 0:00:01.6]} 41...
Ne3 {[%clk 0:00:47.7]} 42. a5 {[%clk 0:00:01.7]} 42... Rf1# {[%clk 0:00:47.7]}
0-1

[Event "Early-Titled-Tuesday-Blitz-September-12-2023"]
[Site "Chess.com"]
[Date "2023.09.12"]
[Round "4"]
[White "Zheenbekov86"]
[Black "Frolyanov_D"]
[Result "0-1"]
[WhiteElo "2410"]
[BlackElo "2643"]
[TimeControl "180+1"]
[EndTime "8:37:52 PDT"]
[Termination "Frolyanov_D won on time"]

1. e4 {[%clk 0:03:00.7]} 1... e5 {[%clk 0:02:59.9]} 2. Nf3 {[%clk 0:03:00.5]}
2... Nf6 {[%clk 0:03:00.1]} 3. d4 {[%clk 0:02:57.3]} 3... Nxe4 {[%clk
0:02:59.4]} 4. Bd3 {[%clk 0:02:57.4]} 4... Nc6 {[%clk 0:02:59.6]} 5. Bxe4 {[%clk
0:02:43.3]} 5... d5 {[%clk 0:02:59]} 6. Bd3 {[%clk 0:02:43.2]} 6... e4 {[%clk
0:02:58.6]} 7. Be2 {[%clk 0:02:42.8]} 7... exf3 {[%clk 0:02:58.4]} 8. Bxf3
{[%clk 0:02:43.1]} 8... Be7 {[%clk 0:02:57.2]} 9. O-O {[%clk 0:02:43]} 9... O-O
{[%clk 0:02:55.3]} 10. c3 {[%clk 0:02:42.6]} 10... Bf6 {[%clk 0:02:52.2]} 11.
Bf4 {[%clk 0:02:42]} 11... Ne7 {[%clk 0:02:51.3]} 12. Nd2 {[%clk 0:02:40.3]}
12... c6 {[%clk 0:02:49.1]} 13. Re1 {[%clk 0:02:39.8]} 13... Ng6 {[%clk
0:02:48.2]} 14. Bg3 {[%clk 0:02:38.9]} 14... Nh4 {[%clk 0:02:47.2]} 15. Be2
{[%clk 0:02:34]} 15... Nf5 {[%clk 0:02:44.5]} 16. Bf4 {[%clk 0:02:33.9]} 16...
Bg5 {[%clk 0:02:41.2]} 17. Be5 {[%clk 0:02:27.6]} 17... Nd6 {[%clk 0:02:14.7]}
18. Nf3 {[%clk 0:02:27.1]} 18... Ne4 {[%clk 0:02:09.2]} 19. Nxg5 {[%clk
0:02:18.5]} 19... Qxg5 {[%clk 0:02:10.1]} 20. Bd3 {[%clk 0:02:15.1]} 20... Bh3
{[%clk 0:02:04]} 21. g3 {[%clk 0:02:11.5]} 21... Rfe8 {[%clk 0:01:51.4]} 22. Bf4
{[%clk 0:02:06.2]} 22... Qf6 {[%clk 0:01:36.6]} 23. Qc2 {[%clk 0:02:04]} 23...
g5 {[%clk 0:01:25]} 24. Be5 {[%clk 0:01:32.8]} 24... Qf3 {[%clk 0:01:20.8]} 25.
Bf1 {[%clk 0:00:49.8]} 25... Bxf1 {[%clk 0:01:19.7]} 26. Rxf1 {[%clk 0:00:49.7]}
26... f6 {[%clk 0:01:18.9]} 27. Bc7 {[%clk 0:00:49.5]} 27... Rac8 {[%clk
0:01:05.9]} 28. Ba5 {[%clk 0:00:48.5]} 28... g4 {[%clk 0:01:00.4]} 29. Qd1
{[%clk 0:00:34.6]} 29... Ng5 {[%clk 0:01:00.6]} 30. Qxf3 {[%clk 0:00:30.6]}
30... Nxf3+ {[%clk 0:01:01.5]} 31. Kg2 {[%clk 0:00:26.7]} 31... Re2 {[%clk
0:01:02.4]} 32. b3 {[%clk 0:00:25.1]} 32... Rce8 {[%clk 0:00:56.9]} 33. Bc7
{[%clk 0:00:13.8]} 33... Nd2 {[%clk 0:00:52.6]} 34. Rfd1 {[%clk 0:00:09.5]}
34... Ne4 {[%clk 0:00:52.5]} 35. Rf1 {[%clk 0:00:09.1]} 35... Nxc3 {[%clk
0:00:52.5]} 36. Bf4 {[%clk 0:00:06.7]} 36... Nb5 {[%clk 0:00:52.4]} 37. Be3
{[%clk 0:00:05.9]} 37... R8xe3 {[%clk 0:00:51.1]} 0-1

[Event "Early-Titled-Tuesday-Blitz-September-12-2023"]
[Site "Chess.com"]
[Date "2023.09.12"]
[Round "4"]
[White "Witty_Alien"]
[Black "Barmen_EV"]
[Result "1-0"]
[WhiteElo "2173"]
[BlackElo "2443"]
[TimeControl "180+1"]
[EndTime "8:37:52 PDT"]
[Termination "Witty_Alien won on time"]

1. e4 {[%clk 0:03:00.9]} 1... c5 {[%clk 0:02:59.8]} 2. Nf3 {[%clk 0:03:01.2]}
2... Nc6 {[%clk 0:03:00.3]} 3. d4 {[%clk 0:03:01.7]} 3... cxd4 {[%clk
0:03:00.6]} 4. c3 {[%clk 0:03:02.5]} 4... e5 {[%clk 0:03:01.4]} 5. cxd4 {[%clk
0:03:02.6]} 5... exd4 {[%clk 0:03:00.2]} 6. Bc4 {[%clk 0:03:02.6]} 6... Nf6
{[%clk 0:02:59.2]} 7. O-O {[%clk 0:02:56.2]} 7... Nxe4 {[%clk 0:02:50.3]} 8. Re1
{[%clk 0:02:55.2]} 8... d5 {[%clk 0:02:50.4]} 9. Bxd5 {[%clk 0:02:53.5]} 9...
Qxd5 {[%clk 0:02:51.3]} 10. Nc3 {[%clk 0:02:52]} 10... Qh5 {[%clk 0:02:46.5]}
11. Nxe4 {[%clk 0:02:43.9]} 11... Be6 {[%clk 0:02:44.8]} 12. Bf4 {[%clk
0:01:58.6]} 12... Be7 {[%clk 0:02:37.5]} 13. Nd6+ {[%clk 0:01:58.4]} 13... Bxd6
{[%clk 0:02:33.8]} 14. Bxd6 {[%clk 0:01:58.5]} 14... O-O-O {[%clk 0:02:30.9]}
15. Bg3 {[%clk 0:01:50.4]} 15... Bd5 {[%clk 0:02:25.7]} 16. Rc1 {[%clk
0:01:25.8]} 16... Bxf3 {[%clk 0:02:23.7]} 17. gxf3 {[%clk 0:01:24.8]} 17... Qd5
{[%clk 0:02:14.1]} 18. Qa4 {[%clk 0:01:14.2]} 18... a6 {[%clk 0:01:42]} 19. Re5
{[%clk 0:00:52.3]} 19... Qd7 {[%clk 0:00:29.2]} 20. Re7 {[%clk 0:00:32.8]} 20...
Qxe7 {[%clk 0:00:10.7]} 21. Rxc6+ {[%clk 0:00:32.3]} 21... Kd7 {[%clk
0:00:11.3]} 22. Rd6+ {[%clk 0:00:15.4]} 22... Kc8 {[%clk 0:00:04]} 23. Qc4+
{[%clk 0:00:13.3]} 23... Kb8 {[%clk 0:00:01.6]} 24. Rxa6+ {[%clk 0:00:11]} 1-0

[Event "Early-Titled-Tuesday-Blitz-September-12-2023"]
[Site "Chess.com"]
[Date "2023.09.12"]
[Round "4"]
[White "temiksmozg"]
[Black "Daniel_Salinas"]
[Result "0-1"]
[WhiteElo "2621"]
[BlackElo "2378"]
[TimeControl "180+1"]
[EndTime "8:37:53 PDT"]
[Termination "Daniel_Salinas won by checkmate"]

1. d4 {[%clk 0:03:00.9]} 1... Nf6 {[%clk 0:02:55.4]} 2. c4 {[%clk 0:02:56.1]}
2... a6 {[%clk 0:02:55.9]} 3. Nc3 {[%clk 0:02:53.3]} 3... c5 {[%clk 0:02:53.4]}
4. d5 {[%clk 0:02:52.8]} 4... b5 {[%clk 0:02:51.7]} 5. cxb5 {[%clk 0:02:53.3]}
5... axb5 {[%clk 0:02:52.6]} 6. e4 {[%clk 0:02:53.5]} 6... b4 {[%clk 0:02:49.3]}
7. Nb5 {[%clk 0:02:53.5]} 7... d6 {[%clk 0:02:47.7]} 8. a4 {[%clk 0:02:53]} 8...
g6 {[%clk 0:02:34.8]} 9. Qc2 {[%clk 0:02:48.6]} 9... Bg7 {[%clk 0:02:34.6]} 10.
Nf3 {[%clk 0:02:47.9]} 10... O-O {[%clk 0:02:33.2]} 11. h3 {[%clk 0:02:47.7]}
11... e6 {[%clk 0:02:29.5]} 12. dxe6 {[%clk 0:02:41.7]} 12... Bxe6 {[%clk
0:02:30.4]} 13. Bg5 {[%clk 0:02:30.5]} 13... h6 {[%clk 0:02:27.3]} 14. Bh4
{[%clk 0:02:29.3]} 14... b3 {[%clk 0:02:20.7]} 15. Qb1 {[%clk 0:02:11.1]} 15...
Qa5+ {[%clk 0:02:17.7]} 16. Nd2 {[%clk 0:02:09.7]} 16... Nc6 {[%clk 0:02:15.7]}
17. Bd3 {[%clk 0:02:00]} 17... d5 {[%clk 0:01:58.4]} 18. Nc3 {[%clk 0:01:33.3]}
18... c4 {[%clk 0:01:39.1]} 19. Be2 {[%clk 0:00:55.2]} 19... d4 {[%clk
0:01:36.1]} 20. Nb5 {[%clk 0:00:50.7]} 20... c3 {[%clk 0:01:35.9]} 21. bxc3
{[%clk 0:00:50.3]} 21... dxc3 {[%clk 0:01:35.7]} 22. Nxb3 {[%clk 0:00:42.8]}
22... Qb4 {[%clk 0:01:15.5]} 23. N3d4 {[%clk 0:00:34.8]} 23... Nxd4 {[%clk
0:01:10.7]} 24. Nxd4 {[%clk 0:00:20.8]} 24... Qxd4 {[%clk 0:01:09.7]} 25. O-O
{[%clk 0:00:21.7]} 25... Qxe4 {[%clk 0:01:05.2]} 26. Bf3 {[%clk 0:00:10.9]}
26... Qxh4 {[%clk 0:01:03.3]} 27. Bxa8 {[%clk 0:00:10.5]} 27... Rxa8 {[%clk
0:01:04.2]} 28. a5 {[%clk 0:00:11.3]} 28... Bd5 {[%clk 0:01:03.3]} 29. a6 {[%clk
0:00:10.9]} 29... Ne4 {[%clk 0:00:51.1]} 30. a7 {[%clk 0:00:09.1]} 30... Bd4
{[%clk 0:00:48.2]} 31. Ra4 {[%clk 0:00:06.6]} 31... Bxf2+ {[%clk 0:00:44.3]} 32.
Kh2 {[%clk 0:00:06.9]} 32... Qg3+ {[%clk 0:00:33.8]} 33. Kh1 {[%clk 0:00:06.8]}
33... Nd2 {[%clk 0:00:30.8]} 34. Qc2 {[%clk 0:00:01.8]} 34... Qxg2# {[%clk
0:00:30.2]} 0-1

[Event "Early-Titled-Tuesday-Blitz-September-12-2023"]
[Site "Chess.com"]
[Date "2023.09.12"]
[Round "4"]
[White "djano"]
[Black "GodDMuhammad"]
[Result "1-0"]
[WhiteElo "2633"]
[BlackElo "2353"]
[TimeControl "180+1"]
[EndTime "8:37:57 PDT"]
[Termination "djano won by resignation"]

1. e4 {[%clk 0:03:00.9]} 1... e5 {[%clk 0:02:58.7]} 2. Nf3 {[%clk 0:03:00.8]}
2... f5 {[%clk 0:02:59.1]} 3. Nxe5 {[%clk 0:02:56.3]} 3... Qf6 {[%clk
0:02:58.7]} 4. d4 {[%clk 0:02:56.1]} 4... d6 {[%clk 0:02:58.7]} 5. Nc4 {[%clk
0:02:55.4]} 5... fxe4 {[%clk 0:02:59.2]} 6. Nc3 {[%clk 0:02:53.9]} 6... Qg6
{[%clk 0:02:59.4]} 7. Ne3 {[%clk 0:02:50.1]} 7... c6 {[%clk 0:02:55.8]} 8. d5
{[%clk 0:02:49.7]} 8... Nf6 {[%clk 0:02:54.4]} 9. Bc4 {[%clk 0:02:33.4]} 9...
Be7 {[%clk 0:02:52.5]} 10. a4 {[%clk 0:02:27.7]} 10... Nbd7 {[%clk 0:02:49.2]}
11. O-O {[%clk 0:02:09.5]} 11... Ne5 {[%clk 0:02:40.3]} 12. Kh1 {[%clk
0:01:58.4]} 12... Bg4 {[%clk 0:02:31.7]} 13. Nxg4 {[%clk 0:01:53.3]} 13... Nfxg4
{[%clk 0:02:26]} 14. Be2 {[%clk 0:01:50.9]} 14... O-O {[%clk 0:02:21.1]} 15. Be3
{[%clk 0:01:40.8]} 15... Nxe3 {[%clk 0:01:10.3]} 16. fxe3 {[%clk 0:01:40.7]}
16... Rxf1+ {[%clk 0:01:08.8]} 17. Qxf1 {[%clk 0:01:40.9]} 17... Rf8 {[%clk
0:01:09.2]} 18. Qe1 {[%clk 0:01:41.3]} 18... Bg5 {[%clk 0:01:05.5]} 19. Qg3
{[%clk 0:01:39.9]} 19... Qh6 {[%clk 0:01:00.8]} 20. dxc6 {[%clk 0:01:25.5]}
20... bxc6 {[%clk 0:01:00]} 21. Nxe4 {[%clk 0:01:18.9]} 21... Bxe3 {[%clk
0:00:59.8]} 22. Nxd6 {[%clk 0:01:10.7]} 22... Bf4 {[%clk 0:00:59.8]} 23. Qb3+
{[%clk 0:01:09.7]} 23... Kh8 {[%clk 0:00:58.3]} 24. g3 {[%clk 0:01:05.5]} 24...
Qxd6 {[%clk 0:00:49.9]} 25. gxf4 {[%clk 0:01:05.7]} 25... Rxf4 {[%clk
0:00:50.4]} 26. Rd1 {[%clk 0:01:03.7]} 26... Qc7 {[%clk 0:00:39.6]} 27. Qb7
{[%clk 0:00:52.6]} 27... Qf7 {[%clk 0:00:02.1]} 28. Rd8+ {[%clk 0:00:47.2]}
28... Qf8 {[%clk 0:00:03]} 29. Rxf8+ {[%clk 0:00:34.2]} 29... Rxf8 {[%clk
0:00:03.9]} 30. Qe7 {[%clk 0:00:34.6]} 30... Ng6 {[%clk 0:00:04.5]} 31. Qxa7
{[%clk 0:00:34.9]} 31... h6 {[%clk 0:00:04.1]} 32. a5 {[%clk 0:00:34.7]} 32...
Nf4 {[%clk 0:00:04.2]} 33. Bf3 {[%clk 0:00:33.2]} 33... Re8 {[%clk 0:00:04.2]}
34. Kg1 {[%clk 0:00:29.8]} 34... Re1+ {[%clk 0:00:04]} 35. Kf2 {[%clk
0:00:30.3]} 35... Ra1 {[%clk 0:00:04.9]} 36. Qb8+ {[%clk 0:00:28.6]} 36... Kh7
{[%clk 0:00:05.4]} 37. Qxf4 {[%clk 0:00:29.5]} 1-0

[Event "Early-Titled-Tuesday-Blitz-September-12-2023"]
[Site "Chess.com"]
[Date "2023.09.12"]
[Round "4"]
[White "hansen"]
[Black "AliKa2810"]
[Result "1-0"]
[WhiteElo "2877"]
[BlackElo "2571"]
[TimeControl "180+1"]
[EndTime "8:37:58 PDT"]
[Termination "hansen won by checkmate"]

1. e4 {[%clk 0:02:38.4]} 1... e6 {[%clk 0:02:59.5]} 2. d4 {[%clk 0:02:34.7]}
2... d5 {[%clk 0:03:00.4]} 3. Nd2 {[%clk 0:02:34.2]} 3... c5 {[%clk 0:02:59.8]}
4. exd5 {[%clk 0:02:22.9]} 4... exd5 {[%clk 0:03:00.7]} 5. Ngf3 {[%clk
0:02:14.7]} 5... Nc6 {[%clk 0:03:01.3]} 6. Bb5 {[%clk 0:02:14.1]} 6... Qe7+
{[%clk 0:03:01.6]} 7. Qe2 {[%clk 0:02:10.9]} 7... Qxe2+ {[%clk 0:03:00.5]} 8.
Bxe2 {[%clk 0:02:10.1]} 8... Bf5 {[%clk 0:02:55.9]} 9. Kd1 {[%clk 0:01:51.2]}
9... Nb4 {[%clk 0:02:29.7]} 10. Bb5+ {[%clk 0:01:47.3]} 10... Kd8 {[%clk
0:02:28.9]} 11. c3 {[%clk 0:01:42.2]} 11... Nc6 {[%clk 0:02:21.8]} 12. Nb3
{[%clk 0:01:14.4]} 12... c4 {[%clk 0:02:13.3]} 13. Nc5 {[%clk 0:01:14.9]} 13...
Kc7 {[%clk 0:02:09.9]} 14. Bf4+ {[%clk 0:01:13.2]} 14... Kb6 {[%clk 0:02:05.3]}
15. Bxc6 {[%clk 0:01:11.4]} 15... bxc6 {[%clk 0:01:52.6]} 16. Ne5 {[%clk
0:01:08.7]} 16... Nh6 {[%clk 0:01:23.9]} 17. Ned7+ {[%clk 0:00:59.2]} 17... Bxd7
{[%clk 0:01:16.5]} 18. Nxd7+ {[%clk 0:00:59.2]} 18... Kb7 {[%clk 0:01:17.3]} 19.
b3 {[%clk 0:00:52.3]} 19... cxb3 {[%clk 0:01:02.8]} 20. axb3 {[%clk 0:00:48.7]}
20... Nf5 {[%clk 0:01:01.5]} 21. Re1 {[%clk 0:00:44.8]} 21... Bd6 {[%clk
0:00:55.7]} 22. Bxd6 {[%clk 0:00:39.2]} 22... Nxd6 {[%clk 0:00:56.6]} 23. Re7
{[%clk 0:00:39.2]} 23... Rhe8 {[%clk 0:00:48.4]} 24. Nc5+ {[%clk 0:00:39.2]}
24... Kb6 {[%clk 0:00:48.5]} 25. Rd7 {[%clk 0:00:39.9]} 25... Red8 {[%clk
0:00:32.2]} 26. Ra6+ {[%clk 0:00:28.9]} 26... Kb5 {[%clk 0:00:32.4]} 27. Rdxa7
{[%clk 0:00:28.3]} 27... Rxa7 {[%clk 0:00:32.5]} 28. Rxa7 {[%clk 0:00:29.2]}
28... g6 {[%clk 0:00:25.6]} 29. f3 {[%clk 0:00:27.8]} 29... h5 {[%clk
0:00:25.8]} 30. Kc2 {[%clk 0:00:22.5]} 30... Re8 {[%clk 0:00:20.8]} 31. Rd7
{[%clk 0:00:22.5]} 31... Re2+ {[%clk 0:00:04.9]} 32. Kd3 {[%clk 0:00:21.9]}
32... Rxg2 {[%clk 0:00:05.5]} 33. Rxd6 {[%clk 0:00:22.5]} 33... Rxh2 {[%clk
0:00:06.1]} 34. Rd7 {[%clk 0:00:22.1]} 34... h4 {[%clk 0:00:02.7]} 35. Rb7+
{[%clk 0:00:22.1]} 35... Ka5 {[%clk 0:00:03.3]} 36. b4# {[%clk 0:00:22.8]} 1-0

[Event "Early-Titled-Tuesday-Blitz-September-12-2023"]
[Site "Chess.com"]
[Date "2023.09.12"]
[Round "4"]
[White "cthulhuuu"]
[Black "DumbKing75"]
[Result "0-1"]
[WhiteElo "2463"]
[BlackElo "2664"]
[TimeControl "180+1"]
[EndTime "8:37:58 PDT"]
[Termination "DumbKing75 won on time"]

1. e4 {[%clk 0:03:00]} 1... c5 {[%clk 0:03:00.5]} 2. Nf3 {[%clk 0:03:00.5]} 2...
d6 {[%clk 0:03:00.9]} 3. g3 {[%clk 0:03:00.3]} 3... Nc6 {[%clk 0:02:53.7]} 4.
Bg2 {[%clk 0:02:59.8]} 4... g6 {[%clk 0:02:51.7]} 5. O-O {[%clk 0:02:59.5]} 5...
Bg7 {[%clk 0:02:52.3]} 6. d3 {[%clk 0:02:59.7]} 6... e6 {[%clk 0:02:41.4]} 7. c3
{[%clk 0:02:58.6]} 7... Nge7 {[%clk 0:02:41.1]} 8. d4 {[%clk 0:02:57.7]} 8...
O-O {[%clk 0:02:39]} 9. Re1 {[%clk 0:02:55.4]} 9... b6 {[%clk 0:02:37.5]} 10. e5
{[%clk 0:02:54.1]} 10... cxd4 {[%clk 0:02:29.8]} 11. cxd4 {[%clk 0:02:53.7]}
11... dxe5 {[%clk 0:02:30]} 12. dxe5 {[%clk 0:02:50.1]} 12... Qxd1 {[%clk
0:02:23.2]} 13. Rxd1 {[%clk 0:02:50.2]} 13... Ba6 {[%clk 0:02:23.7]} 14. Nc3
{[%clk 0:02:46.2]} 14... Rad8 {[%clk 0:02:23.6]} 15. Bf4 {[%clk 0:02:37.4]}
15... h6 {[%clk 0:02:18.7]} 16. h4 {[%clk 0:02:37]} 16... Nb4 {[%clk 0:02:13.2]}
17. a4 {[%clk 0:02:06.9]} 17... Nec6 {[%clk 0:02:09]} 18. Bf1 {[%clk 0:01:41.7]}
18... Bxf1 {[%clk 0:02:08.3]} 19. Kxf1 {[%clk 0:01:42.6]} 19... Nd3 {[%clk
0:02:04.1]} 20. Nb5 {[%clk 0:01:26.9]} 20... Ndxe5 {[%clk 0:01:54.3]} 21. Rxd8
{[%clk 0:01:18.5]} 21... Rxd8 {[%clk 0:01:53.7]} 22. Nxe5 {[%clk 0:01:19.2]}
22... Nxe5 {[%clk 0:01:52.7]} 23. Nxa7 {[%clk 0:01:16.4]} 23... Nd3 {[%clk
0:01:52.9]} 24. Be3 {[%clk 0:01:12.7]} 24... Rb8 {[%clk 0:00:58.9]} 25. Nc6
{[%clk 0:00:14.1]} 25... Rb7 {[%clk 0:00:59.2]} 26. Nd8 {[%clk 0:00:12]} 26...
Rd7 {[%clk 0:00:33]} 27. Bxb6 {[%clk 0:00:12]} 27... Nxb2 {[%clk 0:00:33.8]} 28.
a5 {[%clk 0:00:05.2]} 28... Nc4 {[%clk 0:00:33.9]} 29. a6 {[%clk 0:00:03.9]}
29... Bxa1 {[%clk 0:00:27.7]} 30. a7 {[%clk 0:00:04.3]} 30... Nxb6 {[%clk
0:00:27.7]} 0-1